Cogmind - Beta 15 @@@ ROGUE MODE // 2025.05.07 @ 23:24:00 Player: Skysub Result: Destroyed by Y-54 Guardian with Flak Gun Performance ------------- Evolutions (4) 2000 Regions Visited (4) 800 Robots Destroyed (15) 75 Value Destroyed (406) 406 Prototype IDs (14) 280 Alien Tech Used (0) 0 Bonus (800) 800 TOTAL SCORE: 4361 Bonus ------- Registered with UFD 300 Met Optimus in HQ 500 Cogmind --------- Core Integrity 0/850 Matter 54/300 Energy 100/100 System Corruption 6% Temperature Cool (0) Movement Hovering (50) Location -6/Factory Parts ------- > --- POWER (2) -------- (None) > --- PROPULSION (4) --- Aerolev Unit > --- UTILITY (7) ------ Core Analyzer > --- WEAPON (2) ------- Long-range Missile Launcher > --- INVENTORY (5) ---- Improved Terrain Scanner Improved Field Recycling Unit (0) Junk Cannon (0) DRS Beacon (Ready) Peak State ------------ > --- POWER ------------ Deuterium Engine > --- PROPULSION ------- Wheel Wheel Wheel > --- UTILITY ---------- Scrap Suit Large Storage Unit Improved Terrain Scanner Core Analyzer Improved Medium Armor Plating A0-MCA's Component Scanner > --- WEAPON ----------- Heavy Assault Rifle Heavy Machine Gun > --- INVENTORY -------- Structural Scanner Advanced Terrain Scan Processor ECM Suite Improved Shield Generator System Guard Improved Field Recycling Unit Assault Rifle Mini Grenade Launcher Junk Cannon DRS Beacon [Rating: 46] Favorites ----------- Power Deuterium Engine Engine Deuterium Engine Propulsion Wheel Leg Flexi-carbon Leg Wheel Wheel Hover Unit Aerolev Unit Utility Large Storage Unit Device Improved Terrain Scanner Storage Large Storage Unit Processor A0-MCA's Component Scanner Protection Improved Medium Armor Plating Weapon Heavy Assault Rifle Ballistic Gun Heavy Assault Rifle Launcher Long-range Missile Launcher Special Weapon Junk Cannon Build | -11 -10 -10 -9 -6 ------- Run | Yrd Mat Sub Scr Fac Slots Evolved 8 | . . . . 8 Power 1 | . . . . 1 Propulsion 2 | . . . . 2 Utility 5 | . . . . 5 Weapon . | . . . . . Parts Attached 26 | 7 1 . 5 13 Power 2 | 1 . . 1 . Engine 2 | 1 . . 1 . Core . | . . . . . Reactor . | . . . . . Propulsion 6 | 2 . . 1 3 Treads . | . . . . . Leg 1 | . . . . 1 Wheel 4 | 2 . . 1 1 Hover 1 | . . . . 1 Flight . | . . . . . Utility 10 | 2 1 . 1 6 Device 3 | 1 . . . 2 Storage 2 | 1 1 . . . Processor 4 | . . . 1 3 Hackware . | . . . . . Protection 1 | . . . . 1 Artifact . | . . . . . Weapon 8 | 2 . . 2 4 Energy Gun . | . . . . . Energy Cannon . | . . . . . Ballistic Gun 5 | 2 . . 2 1 Ballistic Cannon . | . . . . . Launcher 2 | . . . . 2 Special Weapon 1 | . . . . 1 Impact Weapon . | . . . . . Slashing Weapon . | . . . . . Piercing Weapon . | . . . . . Special Melee Weapon . | . . . . . Unidentified Prototypes 1 | . . . . 1 Parts Lost 15 | . . 1 . 14 Power 1 | . . . . 1 Propulsion 4 | . . . . 4 Utility 5 | . . . . 5 Weapon 5 | . . 1 . 4 Highest Loss Streak 12 | . . 1 . 12 To Critical Strikes . | . . . . . Average Backups 10 | 2 6 8 13 7 Power . | . 1 1 . . Propulsion 2 | 2 3 3 2 . Utility 5 | . 1 2 7 4 Weapon 2 | . 1 2 2 2 Tool/Special . | . . . . . Unused Backups 14 | . . . 11 3 Power 1 | . . . 1 . Propulsion 4 | . . . 4 . Utility 7 | . . . 4 3 Weapon 2 | . . . 2 . Tool/Special . | . . . . . Average Slot Usage (%) 93 | . 100 95 99 62 Engine 12 | . 14 14 14 2 Wheel 25 | . 28 28 28 13 Device 10 | . 14 14 8 13 Storage 12 | . 14 14 14 5 Processor 5 | . . . 5 12 Ballistic Gun 23 | . 28 23 27 7 Peak Build Rating 46 | 9 9 9 24 46 Average Rating 19 | 5 9 8 17 38 On Entrance 10 | . 9 9 9 24 Naked Turns . | . . . . . Heaviest Build 49 | 13 28 28 35 49 Greatest Support 30 | 26 26 26 26 30 Greatest Overweight (x) 12 | . 1 1 1 12 Average Overweight (x) . | . . 1 1 . Largest Inventory Capacity 15 | 8 15 15 15 15 Average Capacity 14 | 7 14 15 15 13 Most Carried 15 | 4 8 10 15 15 Average Carried 11 | 2 6 8 14 9 Final Capacity 15 | 8 15 15 15 5 Final Carried 15 | 4 8 10 15 5 Class Distribution -------------------- 100% | Mutant Dominant Class ---------------- Mutant | -10/Materials Mutant | -10/Subcaves Mutant | -9/Scraptown Mutant | -6/Factory Resources | -11 -10 -10 -9 -6 ----------- Run | Yrd Mat Sub Scr Fac Matter Collected 441 | 263 67 17 50 44 Remotely . | . . . . . Salvage Created 472 | 23 320 60 . 69 Parts 41 | 3 28 2 . 8 Haulers Intercepted 1 | . 1 . . . Recyclers Shooed . | . . . . . Parts Field Recycled . | . . . . . Retrieved Matter . | . . . . . Parts Self-Destructed . | . . . . . Prevented . | . . . . . Kills | -11 -10 -10 -9 -6 ------- Run | Yrd Mat Sub Scr Fac Combat Hostiles Destroyed 9 | . 6 1 . 2 Guns 7 | . 6 1 . . AOE 2 | . . . . 2 Classes Destroyed 8 | 1 3 1 . 3 Builder 3 | . 1 . . 2 Tunneler 1 | 1 . . . . Hauler 1 | . 1 . . . Watcher 1 | . . . . 1 Swarmer 1 | . . . . 1 Grunt 6 | . 6 . . . Hunter 1 | . . . . 1 Subdweller 1 | . . 1 . . Best Kill Streak 3 | 1 3 1 . 2 Combat Bots Only 2 | . 2 1 . 1 Max Kills in Single Turn 2 | 1 1 1 . 2 Gunslinging . | . . . . . Exploded 1 | . . . . 1 Melee . | . . . . . Uniques/NPCs Destroyed . | . . . . . Combat | -11 -10 -10 -9 -6 -------- Run | Yrd Mat Sub Scr Fac Hostile Shots Fired 225 | . 18 15 . 192 Missed 81 | . 5 7 . 69 Hits 144 | . 13 8 . 123 Melee 16 | . . . . 16 Projectile 128 | . 13 8 . 107 Critical Strikes 4 | . . . . 4 Part Disruptions 2 | . . . . 2 Damage Taken 2832 | . 143 223 . 2466 Core 967 | . 32 83 . 852 Absorbed by Shields . | . . . . . Regen/Repaired (Parts) 7 | . . . . 7 Core Remaining (%) 77 | 100 . . 54 . Volleys Fired 57 | 4 21 13 . 19 Largest 2 | 2 2 2 . 2 Hottest 60 | 40 40 40 . 60 Shots Fired 99 | 8 42 22 . 27 Gun 88 | 8 42 22 . 16 Cannon . | . . . . . Launcher 7 | . . . . 7 Special 4 | . . . . 4 Kinetic 88 | 8 42 22 . 16 Thermal . | . . . . . Explosive 7 | . . . . 7 Electromagnetic . | . . . . . Impact 4 | . . . . 4 Robot Hit Streak 14 | 3 14 5 . 6 Robot Miss Streak 2 | 2 1 2 . 2 Penetration Max . | . . . . . Secondary Targets . | . . . . . Shots Hit Robots 71 | 5 34 16 . 16 Core Hits 33 | 2 15 4 . 12 Critical Kills . | . . . . . Critical Parts Destroyed 2 | . . . . 2 Critical Strikes 2 | . . . . 2 Smash 2 | . . . . 2 Melee Attacks . | . . . . . Impact . | . . . . . Slashing . | . . . . . Piercing . | . . . . . Sneak Attacks . | . . . . . Combat Hostiles . | . . . . . Follow-up Attacks . | . . . . . Damage Inflicted 1629 | 43 274 119 . 1193 Guns 580 | 43 274 119 . 144 Cannons . | . . . . . Explosions 848 | . . . . 848 Melee . | . . . . . Ramming 1 | . . . . 1 Kinetic 580 | 43 274 119 . 144 Thermal . | . . . . . Explosive 848 | . . . . 848 Electromagnetic . | . . . . . Impact 200 | . . . . 200 Slashing . | . . . . . Piercing . | . . . . . Highest Corruption 6 | . . . . 6 Average Corruption 2 | . . . . 2 Corruption Purged . | . . . . . Corruption Blocked . | . . . . . Effects 5 | . . . . 5 Message Errors 1 | . . . . 1 Matter Fused 3 | . . . . 3 Data Loss (minor) 1 | . . . . 1 Overload Shots . | . . . . . Overflow Damage 125 | . . . . 125 Projectiles 112 | . . . . 112 Explosions 13 | . . . . 13 Melee . | . . . . . Knockbacks 2 | . . . . 2 Impact 2 | . . . . 2 Kinetic . | . . . . . Secondary . | . . . . . Self-Inflicted Damage 227 | . . . . 227 Shots 5 | . . . . 5 Rammed 1 | . . . . 1 Targets Rammed 1 | . . . . 1 Kicked . | . . . . . Crushed . | . . . . . Highest Temperature 18 | . 18 . . 8 Average Temperature 7 | . 8 . . 4 Received Heat Transfer 522 | . 78 72 . 372 Siege Activations . | . . . . . Martial Activations . | . . . . . Shielding Activations . | . . . . . Robots Disrupted . | . . . . . Combat Hostiles . | . . . . . Robots Corrupted . | . . . . . Combat Hostiles . | . . . . . Parts Fried 3 | . . . . 3 Impact Corruptions 3 | . . . . 3 Robots Melted . | . . . . . Combat Hostiles . | . . . . . Parts Melted . | . . . . . Heat Transferred . | . . . . . Parts Sabotaged . | . . . . . Parts Stolen . | . . . . . Parts Stripped . | . . . . . Power Chain Reactions . | . . . . . Alert | -11 -10 -10 -9 -6 ------- Run | Yrd Mat Sub Scr Fac Maximum Alert Level . | . . . . . Low Security (%) 100 | 100 100 . . 100 Level 1 . | . . . . . Level 2 . | . . . . . Level 3 . | . . . . . Level 4 . | . . . . . Level 5 . | . . . . . High Security . | . . . . . Max Security . | . . . . . Peak Influence 139 | . 50 . . 139 Initial . | . . . . . Average 9 | . 16 . . 5 Influence Increases 398 | 5 157 . . 236 Destroy 0b10 Robot/C 160 | . 120 . . 40 Destroy 0b10 Robot/NC 30 | 5 10 . . 15 Destroy Leader 34 | . 22 . . 12 Successful Hack 5 | . 5 . . . Disable Machine 30 | . . . . 30 Destroy Structure 79 | . . . . 79 Lose Combat Pursuer 60 | . . . . 60 Influence Decreases 259 | 5 143 14 . 97 Entered New Map 7 | . . 7 . . Time Decay 189 | 5 143 7 . 34 Lost Part 63 | . . . . 63 Squads Dispatched 8 | . 3 . . 5 Investigation 4 | . 1 . . 3 Extermination 1 | . . . . 1 Reinforcement 2 | . 2 . . . Assault . | . . . . . Garrison 1 | . . . . 1 Intercept . | . . . . . Searches Triggered . | . . . . . Construction Impeded . | . . . . . Haulers Reinforced . | . . . . . Active Scanning Responses . | . . . . . Cargo Convoy Interrupts . | . . . . . Stealth | -11 -10 -10 -9 -6 --------- Run | Yrd Mat Sub Scr Fac Distress Signals 2 | . 1 . . 1 Communications Jammed . | . . . . . Distress Signals . | . . . . . Times Spotted 21 | . 8 1 . 12 Peak Tracking Total 7 | . 3 1 . 7 Tactical Retreats 2 | . . . . 2 Traps | -11 -10 -10 -9 -6 ------- Run | Yrd Mat Sub Scr Fac Traps Triggered 3 | . . . . 3 Indirectly . | . . . . . Trap Hack Attempts . | . . . . . Triggered . | . . . . . Disarmed . | . . . . . Reprogrammed . | . . . . . Reused . | . . . . . Traps Extracted . | . . . . . Installed . | . . . . . Triggered . | . . . . . Machines | -11 -10 -10 -9 -6 ---------- Run | Yrd Mat Sub Scr Fac Machines Disabled 2 | . . . . 2 Max in Single Turn 1 | . . . . 1 Machines Repaired . | . . . . . Machines Dismantled . | . . . . . Machines Sabotaged . | . . . . . Overloaded Fab Kills . | . . . . . Hacking | -11 -10 -10 -9 -6 --------- Run | Yrd Mat Sub Scr Fac Machines Accessed 7 | . 1 . 4 2 Terminals 1 | . 1 . . . Fabricators . | . . . . . Repair Stations . | . . . . . Recycling Units 2 | . . . . 2 Scanalyzers . | . . . . . Garrison Access . | . . . . . Total Hacks 39 | . 4 . 28 7 Successful 30 | . 1 . 28 1 Failed 9 | . 3 . . 6 Catastrophic 3 | . 2 . . 1 Database Lockouts . | . . . . . Manual 3 | . 3 . . . Terminals 4 | . 4 . . . Fabricators . | . . . . . Repair Stations . | . . . . . Recycling Units 7 | . . . . 7 Scanalyzers . | . . . . . Garrison Access . | . . . . . Terminal Hacks 29 | . 1 . 28 . Record 27 | . . . 27 . Hauler Manifests 1 | . 1 . . . Proto ID Catalog 1 | . . . 1 . Fabricator Hacks . | . . . . . Repair Station Hacks . | . . . . . Recycling Unit Hacks 1 | . . . . 1 Report Inventory 1 | . . . . 1 Scanalyzer . | . . . . . Garrison Access Hacks . | . . . . . Unauthorized Hacks . | . . . . . Terminals . | . . . . . Fabricators . | . . . . . Repair Stations . | . . . . . Recycling Units . | . . . . . Scanalyzers . | . . . . . Garrison Access . | . . . . . Data Cores Recovered . | . . . . . Used . | . . . . . Hacking Detections 3 | . 1 . . 2 Full Trace Events 2 | . 1 . . 1 Feedback Events . | . . . . . Feedback Blocked . | . . . . . Robot Schematics Acquired . | . . . . . Robots Built . | . . . . . Authchips . | . . . . . Time . | . . . . . Total Robot Build Rating . | . . . . . Part Schematics Acquired . | . . . . . Parts Built . | . . . . . Authchips . | . . . . . Time . | . . . . . Total Part Build Rating . | . . . . . Parts Repaired . | . . . . . Time . | . . . . . Parts Recycled . | . . . . . Recycled Matter . | . . . . . Retrieved Matter . | . . . . . Retrieved Components . | . . . . . Parts Scanalyzed . | . . . . . Part Schematics Acquired . | . . . . . Parts Damaged . | . . . . . Bothacking | -11 -10 -10 -9 -6 ------------ Run | Yrd Mat Sub Scr Fac Used RIF Installer . | . . . . . Robots Hacked . | . . . . . Non-combat . | . . . . . Combat . | . . . . . Robot Hacks Applied . | . . . . . Relay Couplers Released . | . . . . . Fabnet Peak Effective % . | . . . . . Robots Rewired . | . . . . . Allies Hacked . | . . . . . Hacks Repelled . | . . . . . Allies | -11 -10 -10 -9 -6 -------- Run | Yrd Mat Sub Scr Fac Total Allies . | . . . . . Largest Group . | . . . . . Highest-Rated Group . | . . . . . Highest-Rated Ally . | . . . . . Total Orders . | . . . . . Ally Attacks . | . . . . . Total Damage . | . . . . . Kills . | . . . . . Allies Corrupted . | . . . . . Allies Melted . | . . . . . Intel | -11 -10 -10 -9 -6 ------- Run | Yrd Mat Sub Scr Fac Active Infowar (turns) 1856 | 18 429 81 1064 264 Terrain 1851 | 18 429 81 1064 259 Structural 93 | . . . . 93 Robot Analysis Total . | . . . . . Derelict Logs Recovered 1 | . . . 1 . Drone Launches . | . . . . . Drone Recoveries . | . . . . . Exploration | -11 -10 -10 -9 -6 ------------- Run | Yrd Mat Sub Scr Fac Turns Passed 2790 | 65 429 81 1736 479 Spaces Moved 2303 | 45 106 37 1674 441 Core 65 | 1 . . . 64 Treads . | . . . . . Legs . | . . . . . Wheels 2215 | 44 106 37 1674 354 Hover 23 | . . . . 23 Flight . | . . . . . Fastest Speed 50 | 50 90 105 95 50 Average Speed 98 | 89 104 105 100 88 Slowest Speed 650 | 100 105 105 105 650 Overloaded Moves . | . . . . . Propulsion Burnouts . | . . . . . Robots Hopped . | . . . . . Potential Cave-ins . | . . . . . Cave-ins Triggered . | . . . . . Exploration Rate (%) 26 | 3 21 6 93 10 Regions Visited 4 Branch Regions 2 Pre-discovered Areas 1 | . . . 1 . Known Exits Taken . | . . . . . Unknown Exits Taken 4 | 1 1 1 1 . Scrap Searched 10 | . . . 10 . Spaces Dug . | . . . . . Terrain Destroyed 87 | . . . . 87 Melee . | . . . . . Projectile 1 | . . . . 1 AOE 86 | . . . . 86 Terrain Rammed . | . . . . . Walls Destroyed . | . . . . . Machines Disabled . | . . . . . Actions | -11 -10 -10 -9 -6 --------- Run | Yrd Mat Sub Scr Fac Total 2754 | 59 390 61 1741 503 Wait 314 | . 260 10 31 13 Move 2299 | 44 105 36 1673 441 Hop . | . . . . . Pick Up 28 | 4 3 2 17 2 Fast Attach 11 | 7 . . 1 3 Attach 15 | . . . 1 14 Detach 5 | . . . . 5 Swap 6 | . 1 . 3 2 Drop 18 | . . . 15 3 Fire 57 | 4 21 13 . 19 Melee . | . . . . . Ram 1 | . . . . 1 Kick . | . . . . . Crush . | . . . . . Escape Stasis . | . . . . . Rewire . | . . . . . Trap . | . . . . . Miscellaneous . | . . . . . Route ------- -11/Scrapyard -10/Materials -10/Subcaves -9/Scraptown (discovered 2 exits: *Fac x2) -6/Factory History --------- Turn | Location | Event 10 | -11/Scrapyard | Discovered new exit (range 16) 66 | -11/Scrapyard | Entered Materials 300 | -10/Materials | Build established: Mutant 479 | -10/Materials | Discovered new exit (range 8) 495 | -10/Materials | Entered Subcaves 496 | -10/Subcaves | Approached by a straggling Scientist 576 | -10/Subcaves | Entered Scraptown 774 | -9/Scraptown | Visited UFD Registry 774 | -9/Scraptown | Registered with UFD as "Nanoparser" 789 | -9/Scraptown | Visited Supply Room 822 | -9/Scraptown | Visited Awakened 852 | -9/Scraptown | Visited Science Testing Area 881 | -9/Scraptown | Scanned Subdweller tech in exchange for log data 884 | -9/Scraptown | Learned Research stockpile data 899 | -9/Scraptown | Discovered new exit (range 5) 946 | -9/Scraptown | Guru changed UFD alias to "Phasekit" 994 | -9/Scraptown | Received an X-ray algorithm 1245 | -9/Scraptown | Heard Great Nut preacher, LISTEN AND RECITE! 1343 | -9/Scraptown | Learned location of Extension (-4) 1412 | -9/Scraptown | Visited Assassins FH 1438 | -9/Scraptown | Visited Symbiants 1468 | -9/Scraptown | Visited Bundlers 1564 | -9/Scraptown | Visited Comm Corps 1627 | -9/Scraptown | Visited A0-MCA Data Center 1634 | -9/Scraptown | Given an A- rating by A0-MCA 1639 | -9/Scraptown | Found A0-MCA's Component Scanner 1666 | -9/Scraptown | Visited Scrap Suit Storage 1673 | -9/Scraptown | Found Scrap Suit 1701 | -9/Scraptown | Visited Supply Room 1874 | -9/Scraptown | Visited LU-1G1's Boring Crew 1910 | -9/Scraptown | Visited Derelict Rescue Squad 1925 | -9/Scraptown | Found DRS Beacon 2021 | -9/Scraptown | Discovered new exit (range 3) 2057 | -9/Scraptown | Visited Scrapoid Pod Storage 2082 | -9/Scraptown | Visited Science Guys 2118 | -9/Scraptown | Visited Junk Cannon Lab 2142 | -9/Scraptown | Found Junk Cannon 2234 | -9/Scraptown | Met Optimus 2234 | -9/Scraptown | Accepted into 0bPrime 2312 | -9/Scraptown | Entered Factory 2312 | -6/Factory | Evolved 8 slots: Power x1, Propulsion x2, Utility x5 2733 | -6/Factory | Core integrity fell below 50% 2777 | -6/Factory | Core integrity fell below 20% 2791 | -6/Factory | Destroyed by Y-54 Guardian with Flak Gun Last Messages --------------- Dropped Lrg. Storage Unit. Flexi-carbon Leg destroyed. G-50 Soldier destroyed. Triggered Ambush Trap. B-48 Gladiator emerges from a hatch in the floor. S-27 Virus emerges from a hatch in the floor. Adv. Terrain Scan Processor destroyed. System corrupted by crushing effect (+2). Slammed into S-27 Virus. Acquired Prototype Hover Unit. Identified Aerolev Unit. System Guard destroyed. Acquired Lrn. Missile Launcher. Nuclear Reactor explodes. S-27 Virus destroyed. Y-54 Guardian emerges from the garrison. The unstable cave ceiling collapses. Assembly Bed disabled. System corrupted: Matter fused (-6). Map ----- +----------------------------------------------------+ | ????????????????????????????????? | | ????????????????????????????????? | | ????????????????????????????????? | | ????????????????????????????????? | | ????????????????????????????????? | | ????????????????????????????????? | | ????????????????????????????????? | | ????????????????????????????????? | | ????????????????????????????????? | | ????????????????????????????????? | | ????????????????????????????????? | | ????????????????????????????????? | | ????????????????????????????????? | | ????????????????????????????????? | | ????????????????????????????????? | | ????????????????????????????????? | | ????????????????????????????????? | | ????????????????????????????????? | | ????????????????????????????????? | | ????????????????????????????????? | | ????????????????????????????????? | | ????????????????????????????????? | | ?#########??????????????????????? | | # #??????????????????????? | | # #??????????????????????? | | # """"""@#??????????????????????? | | # "" """ #??????????????????????? | | # """ ??????????????????????? | | # """ ??????????????????????? | | # ?????????????????????? | | # ?????????????????????? | | # #????????????????????? | | #### ##???????????????????? | | ??# b ##########??????????? | | ??# ?????????? | | ??# ?????????? | | ??# ?????????? | | ?? #######????????????? | | ?### #####?????????????? | | ??? Y !#?????????????? | | ??? #?????????????? | | ??# #?????????????? | | ??### " " #?????????????? | | ????# "G" #?????????????? | | ????# " #?????????????? | | ????# * #?????????????? | | ????# ####?????????????? | | ????# ## ## ###????????????????? | | ????# ## #??????????????????? | | ????# ## #??????????????????? | +----------------------------------------------------+ Best States ------------- Heat Dissipation 37 Energy Generation 14 Energy Capacity 275 Matter Stores 300 Matter Capacity 300 Sight Range 16 Terrain Scan Range 16 Terrain Scan Density 210 Corruption Containment 8 Armor Coverage 225 Evasion (%) 55 Core Analysis 6 Item Schematics ----------------- None Robot Schematics ------------------ None Fabricated ------------ Nothing Repaired ---------- Nothing Alien Tech Used ----------------- None Achievements -------------- None Challenges ------------ None Game ------ Seed InsulationAuthchipJets Manual? 0 Play Time 00:43:06 Cumulative 61.4 hours Start 2025.05.07 @ 22:34:23 End 2025.05.07 @ 23:24:00 Sessions 1 Manual Loads 0 Difficulty Rogue Special Mode None Game No. 53 Rogue 53 Adventurer 0 Explorer 0 Win Type - Total 1 Types 1/0/0/0/0/0/0/0/0/0 Lore% 38 Gallery% 44 Achievement% 40 Wizard Run 0 Options --------- Layout 1 ASCII 0 Keyboard 1 Movement Numpad Keybinds 0 Fullscreen 1 Font 32/SmallcapsGlow Map View 50x35 Zoom Use 0% Tactical HUD 0 Map Filters NONE Filters NONE Steam 1 RUN: 1fbffc2a-68b2-4f53-b8e9-4f94dbdd52bb